Cogmind - Beta 16.1 @@@ ROGUE MODE // 2026.02.16 @ 17:10:20 Player: C0-2MO Result: Destroyed by H-61 Shepherd with Heavy Assault Cannon Performance ------------- Evolutions (4) 2000 Regions Visited (20) 4000 Robots Destroyed (248) 1240 Value Destroyed (11065) 11065 Prototype IDs (40) 800 Alien Tech Used (0) 0 Bonus (7646) 7646 TOTAL SCORE: 26751 Bonus ------- High Alert Combat Kills 1856 Follower Combat Kills 462 Entered Garrisons 1200 Used RIF Installer 3500 Entered DSFs 500 Aligned with FarCom 300 Friendly Fire -172 Cogmind --------- Core Integrity 0/850 Matter 230/300 Energy 36/100 System Corruption 1% Temperature Cool (0) Movement Flying (28) Location -6/DSF Parts ------- > --- POWER (1) -------- (None) > --- PROPULSION (5) --- Nuclear Pulse Thruster Nuclear Pulse Thruster Nuclear Pulse Thruster Nuclear Pulse Thruster Nuclear Pulse Thruster > --- UTILITY (5) ------ Graphene Brace > --- WEAPON (4) ------- (None) > --- INVENTORY (5) ---- Relay Coupler [Behemoth] (9) Cooled Particle Cannon Peak State ------------ > --- POWER ------------ Light Antimatter Reactor > --- PROPULSION ------- Carbon-fiber Leg Carbon-fiber Leg Carbon-fiber Leg Carbon-fiber Leg Improved VSS Leg > --- UTILITY ---------- Advanced Heat Sink Improved Cooling System Large Storage Unit Advanced Targeting Computer Relay Coupler [NC] > --- WEAPON ----------- Plasma Rifle Plasma Rifle Plasma Rifle Phase Gun > --- INVENTORY -------- Improved Deuterium Engine Carbon-fiber Leg Carbon-fiber Leg Carbon-fiber Leg Energy Well Improved Utility Shielding Graphene Brace Relay Coupler [Behemoth] Heavy Laser Plasma Rifle Plasma Rifle Cooled Particle Cannon Guided Plasma Cannon Remote Datajack Axe [Rating: 66] Favorites ----------- Power Enhanced Nuclear Core Engine Deuterium Engine Power Core Enhanced Nuclear Core Reactor Light Antimatter Reactor Propulsion Improved Aluminum Leg Leg Improved Aluminum Leg Hover Unit Backup Propulsion III Flight Unit Nuclear Pulse Thruster Utility Improved Heat Sink Device Improved Heat Sink Storage Large Storage Unit Processor Targeting Computer Hackware Relay Coupler [NC] Protection Improved Utility Shielding Weapon Heavy Laser Energy Gun Heavy Laser Energy Cannon Guided Plasma Cannon Ballistic Gun Light Assault Rifle Launcher Rocket Launcher Special Weapon Remote Datajack Slashing Weapon Axe Build | -11 -10 -10 -9 -9 -9 -8 -8 -8 -8 -8 -7 -7 -7 -7 -7 -7 -6 -6 -6 -6 ------- Run | Yrd Mat Min Mat Min Exi Min Mat Gar Mat Gar Fac Gar Fac Gar Fac Gar Fac Gar Fac DSF Slots Evolved 8 | . . . 2 . . . 2 . . . 2 . . . . . 2 . . . Power . | . . . . . . . . . . . . . . . . . . . . . Propulsion 3 | . . . . . . . 1 . . . 1 . . . . . 1 . . . Utility 3 | . . . 1 . . . . . . . 1 . . . . . 1 . . . Weapon 2 | . . . 1 . . . 1 . . . . . . . . . . . . . Parts Attached 148 | 7 12 9 21 1 1 . 2 6 18 4 12 5 6 1 1 22 9 6 . 5 Power 15 | 1 1 1 3 . . . . . 1 . 1 . . . . 4 1 2 . . Engine 9 | 1 1 1 3 . . . . . . . . . . . . 2 1 . . . Core 5 | . . . . . . . . . 1 . 1 . . . . 2 . 1 . . Reactor 1 | . . . . . . . . . . . . . . . . . . 1 . . Propulsion 50 | 2 3 4 7 . . . 2 . 5 2 5 2 1 1 . 5 4 2 . 5 Treads . | . . . . . . . . . . . . . . . . . . . . . Leg 45 | 2 3 4 7 . . . 2 . 5 2 5 2 1 1 . 5 4 2 . . Wheel . | . . . . . . . . . . . . . . . . . . . . . Hover . | . . . . . . . . . . . . . . . . . . . . . Flight 5 | . . . . . . . . . . . . . . . . . . . . 5 Utility 29 | 2 3 . 4 1 . . . 2 3 . 4 . 2 . . 5 2 1 . . Device 17 | 1 . . 2 1 . . . 2 3 . 1 . 1 . . 3 2 1 . . Storage 6 | 1 1 . 2 . . . . . . . 1 . . . . 1 . . . . Processor 2 | . 1 . . . . . . . . . 1 . . . . . . . . . Hackware 2 | . . . . . . . . . . . . . 1 . . 1 . . . . Protection 2 | . 1 . . . . . . . . . 1 . . . . . . . . . Artifact . | . . . . . . . . . . . . . . . . . . . . . Weapon 54 | 2 5 4 7 . 1 . . 4 9 2 2 3 3 . 1 8 2 1 . . Energy Gun 42 | 2 4 2 7 . 1 . . 3 8 1 2 1 3 . . 7 . 1 . . Energy Cannon 4 | . . . . . . . . . . . . 1 . . 1 1 1 . . . Ballistic Gun 1 | . . 1 . . . . . . . . . . . . . . . . . . Ballistic Cannon . | . . . . . . . . . . . . . . . . . . . . . Launcher 3 | . 1 1 . . . . . . . 1 . . . . . . . . . . Special Weapon 2 | . . . . . . . . . . . . 1 . . . . 1 . . . Impact Weapon . | . . . . . . . . . . . . . . . . . . . . . Slashing Weapon 2 | . . . . . . . . 1 1 . . . . . . . . . . . Piercing Weapon . | . . . . . . . . . . . . . . . . . . . . . Special Melee Weapon . | . . . . . . . . . . . . . . . . . . . . . Unidentified Prototypes 7 | . . . . 1 . . . . 3 . 1 . 1 . . . 1 . . . Parts Lost 62 | . 6 6 3 . . . . 1 5 3 4 3 4 . 1 11 . 15 . . Power 8 | . 1 1 2 . . . . . . . 1 . . . 1 1 . 1 . . Propulsion 19 | . 1 1 . . . . . . 2 2 . 3 1 . . 4 . 5 . . Utility 10 | . 2 . . . . . . . 2 . . . . . . 2 . 4 . . Weapon 25 | . 2 4 1 . . . . 1 1 1 3 . 3 . . 4 . 5 . . Highest Loss Streak 14 | . 2 2 1 . . . . 1 1 2 2 2 2 . 1 9 . 14 . . To Critical Strikes . | . . . . . . . . . . . . . . . . . . . . . Average Backups 12 | . 7 9 10 14 15 15 13 14 14 13 15 14 14 14 14 12 14 13 5 2 Power . | . . . . . . . . . . 1 . 1 1 1 1 . 1 . . . Propulsion 2 | . 1 1 2 6 6 6 4 3 2 1 1 1 1 1 1 . 1 2 2 . Utility 3 | . 1 2 3 3 3 3 3 4 3 2 4 6 7 8 8 4 4 3 2 1 Weapon 5 | . 3 5 3 5 6 6 6 6 7 8 6 4 4 3 3 5 6 5 1 1 Tool/Special . | . . . . . . . . . . . . . . . . . . . . . Unused Backups 21 | . 1 2 6 . . . . . 3 . . . . . . 3 1 2 . 3 Power 2 | . . . 1 . . . . . 1 . . . . . . . . . . . Propulsion 4 | . . . 1 . . . . . . . . . . . . . . 1 . 2 Utility 9 | . . 1 . . . . . . 2 . . . . . . 3 1 1 . 1 Weapon 6 | . 1 1 4 . . . . . . . . . . . . . . . . . Tool/Special . | . . . . . . . . . . . . . . . . . . . . . Average Slot Usage (%) 93 | . 98 98 93 88 93 100 90 91 90 99 98 99 95 99 100 90 99 82 6 27 Engine 5 | . 13 13 7 11 11 11 9 9 3 . . . . . . 4 6 1 . . Core 2 | . . . . . . . . . 5 9 6 7 7 7 7 2 . . . . Leg 26 | . 28 28 22 22 22 22 27 27 26 26 30 29 30 30 30 25 33 27 6 1 Device 11 | . 5 . 10 11 11 11 9 9 16 18 15 15 9 12 15 10 12 10 . 3 Storage 9 | . 14 14 11 11 11 11 9 9 9 9 7 7 7 7 7 6 6 4 . . Processor 6 | . 5 14 11 11 11 11 9 9 . . 2 7 7 7 7 7 6 5 . . Hackware 1 | . . . . . . . . . . . . . 4 2 . 4 6 4 . . Energy Gun 26 | . 27 26 29 22 27 33 27 22 27 35 29 28 23 24 28 18 22 21 . . Peak Build Rating 66 | 7 8 10 23 27 23 23 25 26 39 40 49 52 51 54 51 51 55 66 5 33 Average Rating 30 | 5 7 8 14 20 21 23 24 24 30 39 46 47 47 49 50 39 48 51 5 26 On Entrance 27 | . 7 8 8 20 21 23 23 25 23 39 39 47 48 47 50 45 41 55 5 5 Avg Prop Armor Cover (%) 17 | . . . . . . . . . . . . . . . . 5 . 21 30 25 Naked Turns 85 | . . . . . . . . . . . . . . . . . . 85 . . Heaviest Build 71 | 14 23 21 39 36 39 39 39 41 43 43 65 71 65 52 50 53 48 53 . 1 Greatest Support 75 | 20 20 20 26 26 26 26 39 39 45 45 67 67 63 58 55 55 75 75 3 30 Greatest Overweight (x) 3 | . 1 1 1 1 1 1 . 1 1 1 . 1 1 . . 3 . . . . Average Overweight (x) . | . . . . 1 1 1 . . . . . . . . . . . . . . Largest Inventory Capacity 20 | 8 10 10 15 15 15 15 15 15 15 15 20 20 20 15 15 15 15 15 5 5 Average Capacity 14 | 7 9 10 10 15 15 15 15 15 15 15 17 20 18 15 15 13 15 13 5 5 Most Carried 17 | 2 10 10 14 15 15 15 15 15 15 15 17 17 17 15 15 15 15 15 5 5 Average Carried 12 | 1 7 9 10 14 14 15 13 14 14 13 15 14 14 14 14 12 14 13 5 2 Final Capacity 20 | 8 10 10 15 15 15 15 15 15 15 15 20 20 15 15 15 15 15 5 5 5 Final Carried 17 | 2 10 9 14 15 15 15 14 15 14 13 15 17 14 14 15 15 15 5 5 2 Class Distribution -------------------- 30% | Skirmisher 24% | Mutant 16% | Scavenger-Skirmisher 12% | Scientist-Skirmisher 6% | Scavenger-Mutant 4% | Gunner 4% | Scavenger-Gunner Dominant Class ---------------- Mutant | -10/Materials Scavenger-Mutant | -10/Mines Scavenger-Gunner | -9/Materials Mutant | -9/Mines Mutant | -9/Exiles Skirmisher | -8/Mines Skirmisher | -8/Materials Scavenger-Skirmisher | -8/Garrison Skirmisher | -8/Materials Skirmisher | -8/Garrison Skirmisher | -7/Factory Scientist-Skirmisher | -7/Garrison Scientist-Skirmisher | -7/Factory Scientist-Skirmisher | -7/Garrison Scientist-Skirmisher | -7/Factory Scavenger-Skirmisher | -7/Garrison Scavenger-Skirmisher | -6/Factory Skirmisher | -6/Garrison Skirmisher | -6/Factory Sprinter | -6/DSF Resources | -11 -10 -10 -9 -9 -9 -8 -8 -8 -8 -8 -7 -7 -7 -7 -7 -7 -6 -6 -6 -6 ----------- Run | Yrd Mat Min Mat Min Exi Min Mat Gar Mat Gar Fac Gar Fac Gar Fac Gar Fac Gar Fac DSF Matter Collected 2701 | 270 220 155 255 4 . 10 . 120 228 93 165 306 165 115 . 359 126 110 . . Remotely . | . . . . . . . . . . . . . . . . . . . . . Salvage Created 10273 | 149 641 221 1380 . . 100 . 419 1362 1412 1261 557 205 462 . 1144 126 834 . . Parts 473 | 11 52 12 87 . . 6 . 22 51 60 53 22 6 14 . 48 6 23 . . Haulers Intercepted 11 | . 1 . 3 . . . . . 5 . 2 . . . . . . . . . Recyclers Shooed 3 | . 1 . 1 . . . . . 1 . . . . . . . . . . . Parts Field Recycled . | . . . . . . . . . . . . . . . . . . . . . Retrieved Matter . | . . . . . . . . . . . . . . . . . . . . . Parts Self-Destructed . | . . . . . . . . . . . . . . . . . . . . . Prevented . | . . . . . . . . . . . . . . . . . . . . . Parts Restored . | . . . . . . . . . . . . . . . . . . . . . Kills | -11 -10 -10 -9 -9 -9 -8 -8 -8 -8 -8 -7 -7 -7 -7 -7 -7 -6 -6 -6 -6 ------- Run | Yrd Mat Min Mat Min Exi Min Mat Gar Mat Gar Fac Gar Fac Gar Fac Gar Fac Gar Fac DSF Combat Hostiles Destroyed 215 | . 20 7 28 . . 3 . 9 20 29 23 17 3 10 . 25 2 19 . . Melee 2 | . . . . . . . . . . . . . . 2 . . . . . . Guns 157 | . 11 5 26 . . 3 . 9 18 25 18 5 2 7 . 11 1 16 . . Cannons 12 | . . . . . . . . . . . . . . 1 . 11 . . . . AOE 29 | . 7 2 1 . . . . . . 2 4 10 . . . 3 . . . . Classes Destroyed 19 | 2 7 2 1 . . 1 . . 3 2 1 . . . . . . . . . Worker 3 | . 1 . . . . . . . 1 . 1 . . . . . . . . . Builder 4 | . 3 . 1 . . . . . . . . . . . . . . . . . Tunneler 4 | 3 . . 1 . . . . . . . . . . . . . . . . . Hauler 11 | . 1 . 3 . . . . . 5 . 2 . . . . . . . . . Recycler 5 | 1 1 . 1 . . . . . 1 . 1 . . . . . . . . . Mechanic 1 | . . . . . . . . . 1 . . . . . . . . . . . Operator 2 | . 1 . 1 . . . . . . . . . . . . . . . . . Watcher 5 | . 1 . 2 . . . . . 2 . . . . . . . . . . . Swarmer 48 | . 8 . 7 . . 2 . 4 . 3 3 4 . 3 . 4 . 10 . . Grunt 94 | . 12 2 12 . . . . 5 10 12 10 9 . 5 . 12 1 4 . . Brawler 4 | . . . . . . . . . 1 2 1 . . . . . . . . . Duelist 3 | . . . 1 . . . . . . . 2 . . . . . . . . . Protector 1 | . . . . . . . . . . . 1 . . . . . . . . . Sentry 43 | . . 2 8 . . . . . 8 9 4 2 3 1 . 4 1 1 . . Specialist 4 | . . . . . . . . . . 1 . . . . . 1 . 2 . . Hunter 7 | . . . . . . 1 . 1 . . . . . 1 . 2 . 2 . . Programmer 8 | . . . . . . . . . . 2 2 2 . . . 2 . . . . Heavy 1 | . . . . . . . . . 1 . . . . . . . . . . . Assembled 3 | . . 3 . . . . . . . . . . . . . . . . . . Best Kill Streak 9 | 4 5 3 6 . . 2 . 2 3 5 6 7 1 7 . 9 1 4 . . Combat Bots Only 9 | . 5 3 5 . . 2 . 2 2 5 6 7 1 7 . 9 1 4 . . Max Kills in Single Turn 4 | 1 3 2 1 . . 2 . 1 1 2 4 4 1 1 . 2 1 2 . . Gunslinging 1 | . . . . . . 1 . . . . 1 . . . . . . 1 . . Exploded 4 | . 3 2 1 . . . . . . 2 4 4 . . . 2 . . . . Melee 1 | . . . . . . . . . . . . . . 1 . . . . . . Uniques/NPCs Destroyed . | . . . . . . . . . . . . . . . . . . . . . Combat | -11 -10 -10 -9 -9 -9 -8 -8 -8 -8 -8 -7 -7 -7 -7 -7 -7 -6 -6 -6 -6 -------- Run | Yrd Mat Min Mat Min Exi Min Mat Gar Mat Gar Fac Gar Fac Gar Fac Gar Fac Gar Fac DSF Hostile Shots Fired 1288 | . 90 40 117 . . 10 . 16 62 55 157 51 107 22 24 139 3 384 . 11 Missed 465 | . 21 6 43 . . 2 . 5 13 21 59 17 49 5 12 52 . 153 . 7 Hits 823 | . 69 34 74 . . 8 . 11 49 34 98 34 58 17 12 87 3 231 . 4 Melee 4 | . . 2 1 . . . . . . . . . . . . . . 1 . . Projectile 819 | . 69 32 73 . . 8 . 11 49 34 98 34 58 17 12 87 3 230 . 4 AOE 3 | . . . . . . . . . . . . 3 . . . . . . . . Critical Strikes 20 | . 1 . 1 . . . . . 4 5 1 1 . . . 2 1 4 . . Part Disruptions 1 | . . . . . . . . . . . . . . . . . . 1 . . Damage Taken 9990 | . 801 556 884 . . 93 . 121 972 514 1128 448 464 233 92 1100 146 2379 . 59 Core 1967 | . 126 68 140 . . 19 . 9 84 68 173 93 78 11 23 188 18 827 . 42 Absorbed by Shields 88 | . . . . . . . . . . . . 5 . . . 9 . 59 . 15 Redirected to Shielding 22 | . . . . . . . . . . . 22 . . . . . . . . . Regen/Repaired (Parts) 446 | . . . . . . . 101 . 59 . . . . . . 24 36 226 . . Core Remaining (%) 54 | 100 . 22 . . . 60 . . . 70 . . . . . 19 . . . . Volleys Fired 544 | 10 69 23 72 . . 5 1 17 69 62 45 24 16 17 . 55 10 49 . . Largest 4 | 2 2 2 3 . . 2 2 3 4 4 4 4 4 4 . 4 4 4 . . Hottest 313 | 90 90 100 152 . . 90 90 195 246 254 268 262 213 224 . 290 290 313 . . Shots Fired 1443 | 20 132 43 208 . . 10 2 30 204 183 176 76 36 50 . 89 25 159 . . Gun 1360 | 20 126 41 208 . . 10 2 30 204 180 174 67 33 44 . 51 20 150 . . Cannon 39 | . . . . . . . . . . . . 2 . 3 . 31 . 3 . . Launcher 24 | . 6 2 . . . . . . . 3 2 7 . . . 4 . . . . Special 20 | . . . . . . . . . . . . . 3 3 . 3 5 6 . . Kinetic 16 | . . 5 11 . . . . . . . . . . . . . . . . . Thermal 1286 | 20 101 36 159 . . . . 8 204 180 174 69 33 47 . 82 20 153 . . Explosive 24 | . 6 2 . . . . . . . 3 2 7 . . . 4 . . . . Electromagnetic 97 | . 25 . 38 . . 10 2 22 . . . . . . . . . . . . Robot Hit Streak 29 | 7 19 14 20 . . 4 1 9 20 14 22 19 12 14 . 29 5 16 . . Robot Miss Streak 6 | 4 5 2 4 . . 4 2 3 3 4 4 3 1 2 . 2 2 6 . . Penetration Max . | . . . . . . . . . . . . . . . . . . . . . Secondary Targets 22 | . 1 1 2 . . 1 . . 1 4 3 . . 1 . 3 1 4 . . Max Gunslinging Chain 1 | . 1 1 1 . . 1 . . 1 1 1 . . 1 . 1 1 1 . . Shots Hit Robots 957 | 10 86 35 144 . . 7 1 22 146 103 118 51 31 34 . 51 18 100 . . Core Hits 468 | 5 40 18 63 . . 5 . 18 59 53 55 40 8 19 . 44 6 35 . . Critical Kills . | . . . . . . . . . . . . . . . . . . . . . Critical Parts Destroyed . | . . . . . . . . . . . . . . . . . . . . . Critical Strikes 48 | . 4 . 3 . . . . . 10 5 9 4 1 1 . . 3 8 . . Burn 47 | . 3 . 3 . . . . . 10 5 9 4 1 1 . . 3 8 . . Corrupt 1 | . 1 . . . . . . . . . . . . . . . . . . . Melee Attacks 50 | . . . . . . . . 25 3 . 8 4 1 6 1 1 1 . . . Impact . | . . . . . . . . . . . . . . . . . . . . . Slashing 50 | . . . . . . . . 25 3 . 8 4 1 6 1 1 1 . . . Piercing . | . . . . . . . . . . . . . . . . . . . . . Sneak Attacks 3 | . . . . . . . . 1 . . . . . 2 . . . . . . Combat Hostiles . | . . . . . . . . . . . . . . . . . . . . . Follow-up Attacks . | . . . . . . . . . . . . . . . . . . . . . Damage Inflicted 21408 | 116 1899 573 2196 21 . 110 20 398 2680 2616 2932 1714 553 879 . 2267 327 2107 . . Guns 16207 | 116 1071 386 2069 . . 107 20 326 2445 2006 2261 844 553 641 . 928 327 2107 . . Cannons 1106 | . . . . . . . . . . . . 72 . 103 . 931 . . . . Explosions 3546 | . 804 178 103 . . . . . . 610 645 798 . . . 408 . . . . Melee 207 | . . . . . . . . 72 . . . . . 135 . . . . . . Ramming 342 | . 24 9 24 21 . 3 . . 235 . 26 . . . . . . . . . Kinetic 74 | . . 31 43 . . . . . . . . . . . . . . . . . Thermal 16263 | 116 823 355 1675 . . . . 76 2445 2006 2261 916 553 744 . 1859 327 2107 . . Explosive 3410 | . 771 178 . . . . . . . 610 645 798 . . . 408 . . . . Electromagnetic 1112 | . 281 . 454 . . 107 20 250 . . . . . . . . . . . . Impact . | . . . . . . . . . . . . . . . . . . . . . Slashing 207 | . . . . . . . . 72 . . . . . 135 . . . . . . Piercing . | . . . . . . . . . . . . . . . . . . . . . Highest Corruption 1 | . . . . . . . . . . . 1 1 1 . . . 1 1 1 1 Average Corruption 1 | . . . . . . . . . . . 1 1 1 . . . 1 1 1 1 Corruption Purged 1 | . . . . . . . . . . . . . 1 . . . . . . . Corruption Blocked . | . . . . . . . . . . . . . . . . . . . . . Effects 14 | . . . . . . . . . . . 3 5 . . . . 1 5 . . Message Errors 4 | . . . . . . . . . . . . 2 . . . . . 2 . . Matter Fused 2 | . . . . . . . . . . . . 1 . . . . 1 . . . Heat Flow Errors 1 | . . . . . . . . . . . . . . . . . . 1 . . Energy Discharges 1 | . . . . . . . . . . . 1 . . . . . . . . . Data Loss (minor) 2 | . . . . . . . . . . . 1 . . . . . . 1 . . Misfires 2 | . . . . . . . . . . . . 1 . . . . . 1 . . Alerts 1 | . . . . . . . . . . . . 1 . . . . . . . . Weapon Failures 1 | . . . . . . . . . . . 1 . . . . . . . . . Overload Shots 4 | . . . . . . . . . . . . . . . . 3 . 1 . . Overflow Damage 108 | . 87 6 . . . . . . . . . 15 . . . . . . . . Projectiles . | . . . . . . . . . . . . . . . . . . . . . Explosions 108 | . 87 6 . . . . . . . . . 15 . . . . . . . . Melee . | . . . . . . . . . . . . . . . . . . . . . Knockbacks 1 | . . . . . . . . . 1 . . . . . . . . . . . Impact 1 | . . . . . . . . . 1 . . . . . . . . . . . Kinetic . | . . . . . . . . . . . . . . . . . . . . . Secondary . | . . . . . . . . . . . . . . . . . . . . . Self-Inflicted Damage 153 | . 105 48 . . . . . . . . . . . . . . . . . . Shots 5 | . 3 2 . . . . . . . . . . . . . . . . . . Rammed . | . . . . . . . . . . . . . . . . . . . . . Targets Rammed 54 | . 4 1 11 5 . 1 . . 27 . 5 . . . . . . . . . Kicked 54 | . 4 1 11 5 . 1 . . 27 . 5 . . . . . . . . . Crushed . | . . . . . . . . . . . . . . . . . . . . . Highest Temperature 426 | 160 288 224 219 . . . . 126 330 426 251 248 240 62 . 316 150 264 . . Average Temperature 83 | 66 65 100 55 . . . . 65 78 136 96 84 114 29 . 115 59 86 . . Received Heat Transfer 2985 | . 255 162 360 . . . . 36 324 252 360 124 132 48 12 238 45 631 . 6 Effects 9 | . . 3 . . . . . . . 2 1 . 2 . . 1 . . . . Energy Bleed 4 | . . . . . . . . . . 2 1 . . . . 1 . . . . Interference 5 | . . 3 . . . . . . . . . . 2 . . . . . . . Siege Activations . | . . . . . . . . . . . . . . . . . . . . . Martial Activations . | . . . . . . . . . . . . . . . . . . . . . Shielding Activations . | . . . . . . . . . . . . . . . . . . . . . Robots Disrupted . | . . . . . . . . . . . . . . . . . . . . . Combat Hostiles . | . . . . . . . . . . . . . . . . . . . . . Robots Corrupted 1 | . 1 . . . . . . . . . . . . . . . . . . . Combat Hostiles 1 | . 1 . . . . . . . . . . . . . . . . . . . Parts Fried 2 | . . . 2 . . . . . . . . . . . . . . . . . Impact Corruptions . | . . . . . . . . . . . . . . . . . . . . . Robots Melted 14 | . 1 . 1 . . . . . 2 2 1 2 1 . . . 1 3 . . Combat Hostiles 14 | . 1 . 1 . . . . . 2 2 1 2 1 . . . 1 3 . . Parts Melted 110 | . 4 1 14 . . . . . 18 9 22 6 10 9 . 3 2 12 . . Heat Transferred 37550 | 310 2269 906 3689 . . . . 185 6105 4255 5180 1844 1147 1628 . 3789 1048 5195 . . Parts Sabotaged . | . . . . . . . . . . . . . . . . . . . . . Parts Stolen . | . . . . . . . . . . . . . . . . . . . . . Parts Stripped . | . . . . . . . . . . . . . . . . . . . . . Power Chain Reactions 3 | . 1 . 2 . . . . . . . . . . . . . . . . . Alert | -11 -10 -10 -9 -9 -9 -8 -8 -8 -8 -8 -7 -7 -7 -7 -7 -7 -6 -6 -6 -6 ------- Run | Yrd Mat Min Mat Min Exi Min Mat Gar Mat Gar Fac Gar Fac Gar Fac Gar Fac Gar Fac DSF Maximum Alert Level 4 | . 2 . 2 . . . . 2 2 4 3 3 2 2 1 3 2 3 1 1 Low Security (%) 25 | 100 32 100 32 100 . 100 100 13 . . . . . . . 9 . . . . Level 1 30 | . 50 . 53 . . . . 11 92 16 . . . 32 100 15 85 12 100 100 Level 2 30 | . 16 . 13 . . . . 74 7 27 65 22 99 67 . 36 14 71 . . Level 3 12 | . . . . . . . . . . 48 34 77 . . . 37 . 16 . . Level 4 . | . . . . . . . . . . 7 . . . . . . . . . . Level 5 . | . . . . . . . . . . . . . . . . . . . . . High Security . | . . . . . . . . . . . . . . . . . . . . . Max Security . | . . . . . . . . . . . . . . . . . . . . . Peak Influence 1132 | 10 474 174 428 159 . 40 7 675 433 1132 965 1094 569 637 333 816 428 777 389 272 Initial 667 | . . 174 13 159 . . . . 328 205 594 667 569 293 333 162 428 221 373 272 Average 388 | 1 249 61 249 32 . 3 . 448 323 712 678 879 486 514 300 573 345 573 377 272 Influence Increases 8163 | 20 922 107 947 . . 70 7 725 831 957 817 487 184 344 49 804 104 772 16 . Destroy 0b10 Robot/C 4520 | . 400 80 560 . . 60 . 240 440 600 460 340 100 200 20 520 60 440 . . Destroy 0b10 Robot/NC 190 | 20 40 . 45 . . . . . 50 . 30 . . . . . 5 . . . Destroy Leader 754 | . 84 10 170 . . 10 . . 164 40 114 10 40 20 10 50 12 20 . . Allied During Kill 106 | . . . . . . . . 25 12 2 2 5 7 . 4 21 12 16 . . Successful Hack 290 | . 19 . 56 . . . 7 . 39 21 26 21 36 14 14 7 14 . 16 . Select Force Hacks 60 | . 60 . . . . . . . . . . . . . . . . . . . Disable Machine 285 | . 105 . . . . . . . 60 15 60 30 . . . 15 . . . . Anti-Garrison Action 850 | . . . . . . . . 350 . 200 . 50 . 50 . 100 . 100 . . Destroy Structure 373 | . 94 17 11 . . . . 65 6 49 50 31 1 15 1 31 1 1 . . Partial Spotted 15 | . . . . . . . . . . 15 . . . . . . . . . . Lose Combat Pursuer 720 | . 120 . 105 . . . . 45 60 15 75 . . 45 . 60 . 195 . . Influence Decreases 7891 | 20 475 520 573 408 . 70 7 50 1190 141 996 356 849 126 454 220 604 375 340 117 Entered New Map 3780 | . . 273 21 249 . . . . 347 111 538 286 515 126 304 70 388 95 340 117 Time Decay 2928 | 20 415 214 522 159 . 70 7 . 583 . 398 . 254 . 80 . 206 . . . Lost Part 593 | . 60 33 30 . . . . 10 50 30 40 30 40 . 10 110 . 150 . . Lost Ally 440 | . . . . . . . . 40 60 . 20 40 40 . 60 40 10 130 . . Purge Threat 150 | . . . . . . . . . 150 . . . . . . . . . . . Squads Dispatched 25 | . 5 . 5 . . . 2 . 2 . 4 . 3 . 2 . 1 . . 1 Investigation 13 | . 4 . 2 . . . 2 . 1 . 1 . 2 . 1 . . . . . Extermination 3 | . . . . . . . . . . . 2 . . . . . 1 . . . Reinforcement 6 | . 1 . 3 . . . . . 1 . . . . . . . . . . 1 Assault 2 | . . . . . . . . . . . 1 . 1 . . . . . . . Garrison 1 | . . . . . . . . . . . . . . . 1 . . . . . Intercept . | . . . . . . . . . . . . . . . . . . . . . Searches Triggered . | . . . . . . . . . . . . . . . . . . . . . Construction Impeded . | . . . . . . . . . . . . . . . . . . . . . Haulers Reinforced . | . . . . . . . . . . . . . . . . . . . . . Active Scanning Responses . | . . . . . . . . . . . . . . . . . . . . . Cargo Convoy Interrupts . | . . . . . . . . . . . . . . . . . . . . . Stealth | -11 -10 -10 -9 -9 -9 -8 -8 -8 -8 -8 -7 -7 -7 -7 -7 -7 -6 -6 -6 -6 --------- Run | Yrd Mat Min Mat Min Exi Min Mat Gar Mat Gar Fac Gar Fac Gar Fac Gar Fac Gar Fac DSF Distress Signals 12 | . 2 . 3 . . . . . 4 . 3 . . . . . . . . . Communications Jammed 2 | . . . . . . . . . . . . . . . . . 2 . . . Distress Signals 1 | . . . . . . . . . . . . . . . . . 1 . . . Times Spotted 317 | . 37 9 47 . . 4 2 15 35 28 38 17 7 12 3 20 6 35 . 2 Peak Tracking Total 11 | . 5 4 5 . . 3 1 5 4 5 7 6 3 4 3 8 3 11 . 2 Tactical Retreats 33 | . 7 . 4 . . . . 2 3 1 3 . . 2 . 3 . 8 . . Traps | -11 -10 -10 -9 -9 -9 -8 -8 -8 -8 -8 -7 -7 -7 -7 -7 -7 -6 -6 -6 -6 ------- Run | Yrd Mat Min Mat Min Exi Min Mat Gar Mat Gar Fac Gar Fac Gar Fac Gar Fac Gar Fac DSF Traps Triggered 26 | . 2 . . . . . . 3 1 4 1 4 . 2 . 5 1 2 . 1 Indirectly . | . . . . . . . . . . . . . . . . . . . . . Trap Hack Attempts . | . . . . . . . . . . . . . . . . . . . . . Triggered . | . . . . . . . . . . . . . . . . . . . . . Disarmed . | . . . . . . . . . . . . . . . . . . . . . Reprogrammed . | . . . . . . . . . . . . . . . . . . . . . Reused . | . . . . . . . . . . . . . . . . . . . . . Traps Extracted . | . . . . . . . . . . . . . . . . . . . . . Installed . | . . . . . . . . . . . . . . . . . . . . . Triggered . | . . . . . . . . . . . . . . . . . . . . . Machines | -11 -10 -10 -9 -9 -9 -8 -8 -8 -8 -8 -7 -7 -7 -7 -7 -7 -6 -6 -6 -6 ---------- Run | Yrd Mat Min Mat Min Exi Min Mat Gar Mat Gar Fac Gar Fac Gar Fac Gar Fac Gar Fac DSF Machines Disabled 32 | . 9 . . . . . . 2 4 4 4 4 . 1 . 3 . 1 . . Max in Single Turn 4 | . 4 . . . . . . 1 2 1 1 2 . 1 . 1 . 1 . . Garrison Relay 11 | . . . . . . . . 2 . 3 . 1 . 1 . 2 . 2 . . Machines Repaired . | . . . . . . . . . . . . . . . . . . . . . Machines Dismantled . | . . . . . . . . . . . . . . . . . . . . . Machines Sabotaged . | . . . . . . . . . . . . . . . . . . . . . Overloaded Fab Kills . | . . . . . . . . . . . . . . . . . . . . . Hacking | -11 -10 -10 -9 -9 -9 -8 -8 -8 -8 -8 -7 -7 -7 -7 -7 -7 -6 -6 -6 -6 --------- Run | Yrd Mat Min Mat Min Exi Min Mat Gar Mat Gar Fac Gar Fac Gar Fac Gar Fac Gar Fac DSF Machines Accessed 68 | . 8 . 9 . 1 . 4 1 17 4 6 3 4 1 2 1 3 2 2 . Terminals 43 | . 6 . 7 . . . 1 1 12 4 2 3 . 1 . 1 1 2 2 . Fabricators 1 | . . . . . . . . . . . . . . . 1 . . . . . Repair Stations 4 | . . . . . . . 1 . 2 . . . 1 . . . . . . . Recycling Units 2 | . 2 . . . . . . . . . . . . . . . . . . . Scanalyzers 11 | . . . 2 . . . 1 . 2 . 3 . 2 . . . 1 . . . Garrison Access 6 | . . . . . . . 1 . 1 . 1 . 1 . 1 . 1 . . . Total Hacks 193 | . 21 . 37 . 1 . 15 3 53 7 17 5 12 3 6 2 4 4 3 . Successful 108 | . 12 . 25 . 1 . 12 . 28 2 9 2 7 1 3 1 2 1 2 . Failed 84 | . 8 . 12 . . . 3 3 25 5 8 3 5 2 3 1 2 3 1 . Catastrophic 16 | . 2 . 1 . . . 1 2 3 1 . . . 2 1 . 2 1 . . Database Lockouts 1 | . 1 . . . . . . . . . . . . . . . . . . . Manual 76 | . 18 . 17 . 1 . 6 . 23 2 2 1 3 1 1 . 1 . . . Terminals 116 | . 18 . 29 . . . 3 3 34 7 4 5 . 3 . 2 1 4 3 . Fabricators 4 | . . . . . . . . . . . . . . . 4 . . . . . Repair Stations 14 | . . . . . . . 3 . 8 . . . 3 . . . . . . . Recycling Units 3 | . 3 . . . . . . . . . . . . . . . . . . . Scanalyzers 38 | . . . 8 . . . 4 . 5 . 12 . 8 . . . 1 . . . Garrison Access 17 | . . . . . . . 5 . 6 . 1 . 1 . 2 . 2 . . . Terminal Hacks 35 | . 3 . 9 . 1 . 2 . 9 2 1 2 . 1 . 1 1 1 2 . Part Schematic 1 | . . . 1 . . . . . . . . . . . . . . . . . Robot Analysis 3 | . 2 . 1 . . . . . . . . . . . . . . . . . Prototype ID Bank 8 | . . . 2 . . . 1 . 4 . . . . . . . 1 . . . Open Door 3 | . . . . . . . . . . 1 . 1 . . . 1 . . . . Open DSF 1 | . . . . . . . . . . . . . . . . . . . 1 . Branch Access Points 2 | . . . 1 . . . . . . . . . . . . . . . 1 . Emergency Access Points 2 | . . . . . . . . . . 1 . . . . . . . 1 . . Terminal Index 1 | . . . . . . . . . 1 . . . . . . . . . . . Unreport Threat 1 | . . . . . . . . . 1 . . . . . . . . . . . Locate Traps 6 | . 1 . 2 . . . 1 . 1 . 1 . . . . . . . . . Registered Components 1 | . . . 1 . . . . . . . . . . . . . . . . . Zone Layout 3 | . . . 1 . . . . . 2 . . . . . . . . . . . Garrison Registry 1 | . . . . . . . . . . . . 1 . . . . . . . . Patrol Navigation 1 | . . . . . . . . . . . . . . 1 . . . . . . Proto ID Catalog 1 | . . . . . 1 . . . . . . . . . . . . . . . Fabricator Hacks 2 | . . . . . . . . . . . . . . . 2 . . . . . Load Schematic 1 | . . . . . . . . . . . . . . . 1 . . . . . Build 1 | . . . . . . . . . . . . . . . 1 . . . . . Repair Station Hacks 6 | . . . . . . . 2 . 4 . . . . . . . . . . . Scan Component 3 | . . . . . . . 1 . 2 . . . . . . . . . . . Repair 3 | . . . . . . . 1 . 2 . . . . . . . . . . . Recycling Unit Hacks . | . . . . . . . . . . . . . . . . . . . . . Scanalyzer 26 | . . . 7 . . . 4 . 3 . 6 . 6 . . . . . . . Insert Component 4 | . . . 1 . . . . . . . 1 . 2 . . . . . . . Analyze 4 | . . . 1 . . . . . . . 1 . 2 . . . . . . . Retrieve Study 18 | . . . 5 . . . 4 . 3 . 4 . 2 . . . . . . . Garrison Access Hacks 6 | . . . . . . . 1 . 1 . 1 . 1 . 1 . 1 . . . Unlock Access 6 | . . . . . . . 1 . 1 . 1 . 1 . 1 . 1 . . . Unauthorized Hacks 33 | . 9 . 9 . . . 3 . 11 . 1 . . . . . . . . . Terminals 28 | . 7 . 9 . . . 1 . 10 . 1 . . . . . . . . . Botnet 11 | . 2 . 3 . . . 1 . 4 . 1 . . . . . . . . . Disrupt 1 | . . . 1 . . . . . . . . . . . . . . . . . Skim 16 | . 5 . 5 . . . . . 6 . . . . . . . . . . . Fabricators . | . . . . . . . . . . . . . . . . . . . . . Repair Stations 1 | . . . . . . . 1 . . . . . . . . . . . . . Patch 1 | . . . . . . . 1 . . . . . . . . . . . . . Recycling Units 2 | . 2 . . . . . . . . . . . . . . . . . . . Tunnel 2 | . 2 . . . . . . . . . . . . . . . . . . . Scanalyzers . | . . . . . . . . . . . . . . . . . . . . . Garrison Access 2 | . . . . . . . 1 . 1 . . . . . . . . . . . Reprogram 2 | . . . . . . . 1 . 1 . . . . . . . . . . . Data Cores Recovered . | . . . . . . . . . . . . . . . . . . . . . Used . | . . . . . . . . . . . . . . . . . . . . . Hacking Detections 56 | . 5 . 8 . . . 3 1 15 3 5 2 4 1 2 1 3 2 1 . Full Trace Events 7 | . . . 1 . . . . 1 . 1 . . 2 . 1 . . 1 . . Feedback Events . | . . . . . . . . . . . . . . . . . . . . . Feedback Blocked . | . . . . . . . . . . . . . . . . . . . . . Robot Schematics Acquired . | . . . . . . . . . . . . . . . . . . . . . Robots Built . | . . . . . . . . . . . . . . . . . . . . . Authchips . | . . . . . . . . . . . . . . . . . . . . . Time . | . . . . . . . . . . . . . . . . . . . . . Total Robot Build Rating . | . . . . . . . . . . . . . . . . . . . . . Part Schematics Acquired 4 | . . . 2 . . . . . . . 1 . 1 . . . . . . . Parts Built 2 | . . . . . . . . . . . . . . . 2 . . . . . Authchips . | . . . . . . . . . . . . . . . . . . . . . Time 42 | . . . . . . . . . . . . . . . 42 . . . . . Total Part Build Rating 8 | . . . . . . . . . . . . . . . 8 . . . . . Part Studies Acquired 17 | . . . 5 . . . 4 . 2 . 4 . 2 . . . . . . . Parts Repaired 3 | . . . . . . . 1 . 2 . . . . . . . . . . . Time 95 | . . . . . . . 32 . 63 . . . . . . . . . . . Parts Recycled . | . . . . . . . . . . . . . . . . . . . . . Recycled Matter . | . . . . . . . . . . . . . . . . . . . . . Retrieved Matter . | . . . . . . . . . . . . . . . . . . . . . Retrieved Components . | . . . . . . . . . . . . . . . . . . . . . Parts Scanalyzed 4 | . . . 1 . . . . . . . 1 . 2 . . . . . . . Part Schematics Acquired 3 | . . . 1 . . . . . . . 1 . 1 . . . . . . . Parts Damaged 2 | . . . . . . . . . . . 1 . 1 . . . . . . . Bothacking | -11 -10 -10 -9 -9 -9 -8 -8 -8 -8 -8 -7 -7 -7 -7 -7 -7 -6 -6 -6 -6 ------------ Run | Yrd Mat Min Mat Min Exi Min Mat Gar Mat Gar Fac Gar Fac Gar Fac Gar Fac Gar Fac DSF Used RIF Installer 7 | . . . . . . . . 2 . 1 . 1 . 1 . 1 . 1 . . Hotswap 1 | . . . . . . . . 1 . . . . . . . . . . . . Code Merge 1 | . . . . . . . . . . . . . . . . 1 . . . . Command Fork 1 | . . . . . . . . . . 1 . . . . . . . . . . Signal Jammer 1 | . . . . . . . . . . . . 1 . . . . . . . . Alert ID Control 1 | . . . . . . . . . . . . . . . . . . 1 . . Structural Interface 1 | . . . . . . . . . . . . . . 1 . . . . . . Robots Hacked 7 | . . . . . . . . . . . . . 2 2 . 1 2 . . . Non-combat 3 | . . . . . . . . . . . . . . . . 1 2 . . . Combat 4 | . . . . . . . . . . . . . 2 2 . . . . . . Robot Hacks Applied 7 | . . . . . . . . . . . . . 2 2 . 1 2 . . . map_route 1 | . . . . . . . . . . . . . . . . . 1 . . . spike_heat 1 | . . . . . . . . . . . . . 1 . . . . . . . reboot_system 2 | . . . . . . . . . . . . . . 2 . . . . . . formatsys_low 2 | . . . . . . . . . . . . . . . . 1 1 . . . formatsys_high 1 | . . . . . . . . . . . . . 1 . . . . . . . Relay Couplers Released 42 | . . . . . . . . 7 . 12 . 3 . 5 . 8 . 7 . . Machine Destruction 42 | . . . . . . . . 7 . 12 . 3 . 5 . 8 . 7 . . Attached 2 | . . . . . . . . . . . . . 1 . . 1 . . . . Merged Code Value 29 | . . . . . . . . . . . . . . . . 8 . 21 . . Fabnet Peak Effective % . | . . . . . . . . . . . . . . . . . . . . . Robots Rewired 19 | . . . . . . . . 3 . . . 2 . 3 . 4 . 7 . . Allies Hacked . | . . . . . . . . . . . . . . . . . . . . . Hacks Repelled . | . . . . . . . . . . . . . . . . . . . . . Allies | -11 -10 -10 -9 -9 -9 -8 -8 -8 -8 -8 -7 -7 -7 -7 -7 -7 -6 -6 -6 -6 -------- Run | Yrd Mat Min Mat Min Exi Min Mat Gar Mat Gar Fac Gar Fac Gar Fac Gar Fac Gar Fac DSF Total Allies 28 | . . . . . . . 3 3 . 2 . 2 2 3 . 5 1 7 . . Largest Group 4 | . . . . . . . 3 3 3 2 1 2 2 2 3 3 4 3 . . Highest-Rated Group 91 | . . . . . . . 48 48 15 59 39 59 45 24 36 76 91 68 . . Highest-Rated Ally 39 | . . . . . . . 16 16 5 39 39 39 29 12 12 32 25 32 . . Total Orders 7 | . . . . . . . . . . . . . . . . 4 2 1 . . STAY 1 | . . . . . . . . . . . . . . . . 1 . . . . FOLLOW 1 | . . . . . . . . . . . . . . . . 1 . . . . AID 5 | . . . . . . . . . . . . . . . . 2 2 1 . . Ally Attacks 161 | . . . . . . . 4 25 25 13 7 13 19 . 11 11 8 25 . . Total Damage 2624 | . . . . . . . . 338 154 171 283 107 247 . 87 410 135 692 . . Kills 18 | . . . . . . . . 3 2 2 2 . 2 . 1 1 2 3 . . Allies Corrupted . | . . . . . . . . . . . . . . . . . . . . . Allies Melted 1 | . . . . . . . . . . . . 1 . . . . . . . . Intel | -11 -10 -10 -9 -9 -9 -8 -8 -8 -8 -8 -7 -7 -7 -7 -7 -7 -6 -6 -6 -6 ------- Run | Yrd Mat Min Mat Min Exi Min Mat Gar Mat Gar Fac Gar Fac Gar Fac Gar Fac Gar Fac DSF Active Infowar (turns) 417 | 13 404 . . . . . . . . . . . . . . . . . . . Seismic 417 | 13 404 . . . . . . . . . . . . . . . . . . . Robot Analysis Total 3 | . 2 . 1 . . . . . . . . . . . . . . . . . Derelict Logs Recovered 3 | . . 2 . 1 . . . . . . . . . . . . . . . . Drone Launches . | . . . . . . . . . . . . . . . . . . . . . Drone Recoveries . | . . . . . . . . . . . . . . . . . . . . . Exploration | -11 -10 -10 -9 -9 -9 -8 -8 -8 -8 -8 -7 -7 -7 -7 -7 -7 -6 -6 -6 -6 ------------- Run | Yrd Mat Min Mat Min Exi Min Mat Gar Mat Gar Fac Gar Fac Gar Fac Gar Fac Gar Fac DSF Turns Passed 14463 | 85 1156 585 1459 810 398 812 181 994 1800 858 940 630 557 437 166 1100 426 1016 10 43 Spaces Moved 9102 | 44 680 371 815 419 209 413 124 684 1280 570 591 405 439 285 129 582 342 647 19 54 Core 209 | 15 . . . . . . . . . . . . . . . . . 167 19 8 Treads . | . . . . . . . . . . . . . . . . . . . . . Legs 8845 | 29 680 371 815 419 209 413 124 684 1280 570 591 405 439 285 129 580 342 480 . . Wheels . | . . . . . . . . . . . . . . . . . . . . . Hover 2 | . . . . . . . . . . . . . . . . 2 . . . . Flight 46 | . . . . . . . . . . . . . . . . . . . . 46 Fastest Speed 28 | 50 120 120 105 190 190 190 105 105 105 108 107 103 90 90 90 90 105 50 50 28 Average Speed 120 | 96 129 131 126 190 190 190 113 116 107 108 112 107 103 90 90 137 105 86 50 33 Slowest Speed 315 | 120 190 190 190 190 190 190 120 175 175 180 113 180 178 90 90 315 105 105 50 50 Overloaded Moves . | . . . . . . . . . . . . . . . . . . . . . Propulsion Burnouts . | . . . . . . . . . . . . . . . . . . . . . Robots Hopped . | . . . . . . . . . . . . . . . . . . . . . Potential Cave-ins . | . . . . . . . . . . . . . . . . . . . . . Cave-ins Triggered . | . . . . . . . . . . . . . . . . . . . . . Exploration Rate (%) 52 | 4 93 81 80 97 62 85 9 76 94 82 21 68 16 31 2 66 12 71 1 52 Regions Visited 20 Branch Regions 4 Pre-discovered Areas 6 | . 2 1 . 1 . . . . 2 . . . . . . . . . . . Known Exits Taken 10 | . . 1 1 . . 1 1 . 1 . 1 . 1 . 1 . 1 . 1 . Unknown Exits Taken 4 | 1 1 . . 1 1 . . . . . . . . . . . . . . . Scrap Searched 5 | . . 2 . 2 . 1 . . . . . . . . . . . . . . Spaces Dug 31 | . . 12 . . . . . 5 3 . 7 . 1 . 1 . 1 1 . . Terrain Destroyed 229 | . 98 23 4 . . . . 5 3 3 38 18 1 . 1 33 1 1 . . Melee 18 | . . . . . . . . 5 3 . 7 . 1 . 1 . 1 . . . Projectile 1 | . . . . . . . . . . . . . . . . . . 1 . . AOE 210 | . 98 23 4 . . . . . . 3 31 18 . . . 33 . . . . Terrain Rammed . | . . . . . . . . . . . . . . . . . . . . . Walls Destroyed . | . . . . . . . . . . . . . . . . . . . . . Machines Disabled . | . . . . . . . . . . . . . . . . . . . . . Actions | -11 -10 -10 -9 -9 -9 -8 -8 -8 -8 -8 -7 -7 -7 -7 -7 -7 -6 -6 -6 -6 --------- Run | Yrd Mat Min Mat Min Exi Min Mat Gar Mat Gar Fac Gar Fac Gar Fac Gar Fac Gar Fac DSF Total 11363 | 63 821 426 1101 428 210 430 163 815 1552 688 737 537 510 417 176 798 395 1001 18 77 Wait 977 | 1 35 6 133 2 . 12 34 24 119 43 58 31 30 45 44 75 12 261 . 12 Move 9085 | 43 679 370 814 418 208 412 123 683 1279 569 591 404 439 284 128 581 342 646 18 54 Hop . | . . . . . . . . . . . . . . . . . . . . . Pick Up 79 | 2 11 4 18 1 1 . 2 2 10 2 4 2 2 3 1 7 6 1 . . Fast Attach 46 | 7 4 . 4 . . . . 3 3 . 2 1 2 1 . 12 1 1 . 5 Attach 63 | . 4 6 7 . 1 . 2 2 13 3 5 2 5 1 . 6 2 3 . 1 Detach 20 | . 1 . 2 . . . . 2 8 . . . 1 . . 4 1 1 . . Swap 135 | . 10 10 15 2 . . . 5 10 3 15 13 10 7 2 16 10 7 . . Drop 96 | . 4 6 25 . . . 1 5 11 1 4 1 4 2 . 10 10 9 . 3 Fire 544 | 10 69 23 72 . . 5 1 17 69 62 45 24 16 17 . 55 10 49 . . Melee 50 | . . . . . . . . 25 3 . 8 4 1 6 1 1 1 . . . Ram . | . . . . . . . . . . . . . . . . . . . . . Kick 54 | . 4 1 11 5 . 1 . . 27 . 5 . . . . . . . . . Crush . | . . . . . . . . . . . . . . . . . . . . . Escape Stasis 52 | . . . . . . . . 10 . 5 . 15 . . . 10 . 10 . 2 Rewire 162 | . . . . . . . . 37 . . . 40 . 51 . 21 . 13 . . Trap . | . . . . . . . . . . . . . . . . . . . . . Miscellaneous . | . . . . . . . . . . . . . . . . . . . . . Route ------- -11/Scrapyard -10/Materials (discovered 6 exits: *Mat x3 / [*Min x2] / Sub) -10/Mines (discovered 2 exits: *Mat x2) -9/Materials (discovered 5 exits: *Mat x3 / *Min x2) -9/Mines (discovered 3 exits: *Mat x2 / *Exi) -9/Exiles -8/Mines -8/Materials (discovered 3 exits: Fac / Sto / Gar) -8/Garrison (discovered 4 exits: *Mat x4) -8/Materials (discovered 5 exits: *Fac x3 / *Sto / Gar) -8/Garrison (discovered 3 exits: *Fac x3) -7/Factory (discovered 2 exits: Fac / Gar) -7/Garrison (discovered 4 exits: *Fac x3 / *Fac) -7/Factory (discovered 2 exits: [*Low] / Gar) -7/Garrison -7/Factory -7/Garrison (discovered 2 exits: *Fac x2) -6/Factory -6/Garrison -6/Factory (discovered 3 exits: Low x2 / DSF) -6/DSF (discovered 1 exit: [*Fac]) History --------- Turn | Location | Event 14 | -11/Scrapyard | Discovered new exit (range 15) 86 | -11/Scrapyard | Entered Materials 279 | -10/Materials | Discovered new exit (range 13) 308 | -10/Materials | Build established: Mutant 389 | -10/Materials | Discovered new exit (range 7) 536 | -10/Materials | Discovered new exit (range 14) 596 | -10/Materials | Central database locked down 604 | -10/Materials | Discovered new exit (range 9) 647 | -10/Materials | Learned Storage stockpile data 708 | -10/Materials | Core integrity fell below 50% 721 | -10/Materials | Identified exit to Materials 721 | -10/Materials | Identified exit to Subcaves 760 | -10/Materials | Learned location of 2 exits from Materials 816 | -10/Materials | Learned Storage trap positions 1242 | -10/Materials | Entered Mines 1329 | -10/Mines | Discovered exit to Materials (range 3) 1516 | -10/Mines | Joined a pair of Derelicts in attacking an 0b10 outpost 1613 | -10/Mines | Assembled infested the area 1749 | -10/Mines | Learned location of 1 exit from Materials 1770 | -10/Mines | Discovered exit to Materials (range 8) 1827 | -10/Mines | Entered Materials 1827 | -9/Materials | Evolved 2 slots: Utility x1, Weapon x1 1828 | -9/Materials | Identified exit to Materials 1828 | -9/Materials | Identified exit to Mines 1840 | -9/Materials | Build established: Scavenger-Mutant 2318 | -9/Materials | Learned Storage emergency access door positions 2373 | -9/Materials | Build established: Scavenger-Gunner 2432 | -9/Materials | Learned Storage trap positions 2477 | -9/Materials | Learned location of 1 exit from Storage 2512 | -9/Materials | Loaded intel: 2 repair station locations 3065 | -9/Materials | Build established: Gunner 3286 | -9/Materials | Entered Mines 3407 | -9/Mines | Build established: Mutant 3436 | -9/Mines | Deemed a non-threat by the Exiles lab entrance 3436 | -9/Mines | Discovered new exit (range 5) 3489 | -9/Mines | A weapon hastily lodged in a ceiling crevice suddenly fell to the ground 3559 | -9/Mines | Received a Rocket Launcher from a helpful Derelict 3671 | -9/Mines | Discovered exit to Materials (range 9) 3777 | -9/Mines | Learned location of Storage (-8) 3880 | -9/Mines | Learned 4 Materials zone layouts 3945 | -9/Mines | Found a damaged Exp. Sensor Array with a note attached 3949 | -9/Mines | Found Prototype Device 3949 | -9/Mines | Identified Exp. Sensor Array 4096 | -9/Mines | Entered Exiles 4142 | -9/Exiles | Met 8R-AWN 4174 | -9/Exiles | Met EX-HEX 4226 | -9/Exiles | Met EX-BIN 4248 | -9/Exiles | Aligned with FarCom system 4250 | -9/Exiles | Given EX-Vault access code 4294 | -9/Exiles | Opened EX-Vault 4308 | -9/Exiles | Found Gui. Plasma Cannon 4347 | -9/Exiles | Warned to stay clear of 0b10 Research branches 4373 | -9/Exiles | Exiles lab attacked by MAIN.C 4473 | -9/Exiles | Discovered new exit (range 14) 4494 | -9/Exiles | Left Exiles lab with Gui. Plasma Cannon 4494 | -9/Exiles | Entered Mines 4781 | -8/Mines | Build established: Skirmisher 4822 | -8/Mines | Discovered exit to Materials (range 3) 5306 | -8/Mines | Entered Materials 5306 | -8/Materials | Evolved 2 slots: Propulsion x1, Weapon x1 5307 | -8/Materials | Identified exit to Storage 5307 | -8/Materials | Identified exit to Factory 5377 | -8/Materials | Repaired Imp. Aluminum Leg 5406 | -8/Materials | Identified exit to Garrison 5487 | -8/Materials | Entered Garrison 5487 | -8/Garrison | Accompanied by 3 allies 5618 | -8/Garrison | Garrison Relay disabled 5655 | -8/Garrison | Warlord forces raided the area 5725 | -8/Garrison | Triggered checkpoint 5727 | -8/Garrison | Triggered checkpoint 5794 | -8/Garrison | Lost 3 allies 5799 | -8/Garrison | Build established: Mutant 5883 | -8/Garrison | Triggered checkpoint 5892 | -8/Garrison | Garrison Relay disabled 5919 | -8/Garrison | Discovered new exit (range 8) 5981 | -8/Garrison | Triggered checkpoint 6013 | -8/Garrison | Discovered new exit (range 15) 6041 | -8/Garrison | Discovered new exit (range 5) 6049 | -8/Garrison | Triggered checkpoint 6096 | -8/Garrison | Installed Relay Interface Framework 6208 | -8/Garrison | Discovered new exit (range 10) 6272 | -8/Garrison | Expanded RIF knowledge: Hotswap 6290 | -8/Garrison | Build established: Scavenger-Skirmisher 6315 | -8/Garrison | Triggered checkpoint 6481 | -8/Garrison | Entered Materials 6481 | -8/Materials | Accompanied by 3 allies 7100 | -8/Materials | Build established: Mutant 7112 | -8/Materials | Discovered exit to Factory (range 10) 7285 | -8/Materials | Learned Factory fabricator intel 7363 | -8/Materials | Learned location of Lower Caves (-7) 7537 | -8/Materials | Learned location of Extension (-5) 7562 | -8/Materials | Repaired Imp. Medium Laser 7572 | -8/Materials | Repaired Imp. Heat Sink 7573 | -8/Materials | Learned 8 Factory zone layouts 7618 | -8/Materials | Discovered exit to Factory (range 15) 7621 | -8/Materials | Learned Storage emergency access door positions 7680 | -8/Materials | Learned location of 1 exit from Recycling 7867 | -8/Materials | Build established: Skirmisher 8080 | -8/Materials | Identified exit to Garrison 8281 | -8/Materials | Entered Garrison 8309 | -8/Garrison | Triggered checkpoint 8334 | -8/Garrison | Garrison Relay disabled 8387 | -8/Garrison | Triggered checkpoint 8453 | -8/Garrison | Discovered exit to Factory (range 10) 8483 | -8/Garrison | Triggered checkpoint 8489 | -8/Garrison | Garrison Relay disabled 8659 | -8/Garrison | Triggered checkpoint 8694 | -8/Garrison | Discovered exit to Factory (range 10) 8800 | -8/Garrison | Rescued a captive Derelict 8804 | -8/Garrison | Rescued a captive Derelict 8853 | -8/Garrison | Triggered checkpoint 8928 | -8/Garrison | Expanded RIF knowledge: Command Fork 9061 | -8/Garrison | Triggered checkpoint 9077 | -8/Garrison | Garrison Relay disabled 9107 | -8/Garrison | Discovered exit to Factory (range 15) 9139 | -8/Garrison | Entered Factory 9139 | -7/Factory | Accompanied by 1 ally 9139 | -7/Factory | Evolved 2 slots: Propulsion x1, Utility x1 9140 | -7/Factory | Identified exit to Factory 9141 | -7/Factory | Loaded intel: 6 fabricator locations 9939 | -7/Factory | First assault squad dispatched 10079 | -7/Factory | Identified exit to Garrison 10079 | -7/Factory | Entered Garrison 10093 | -7/Garrison | Expanded RIF knowledge: Signal Jamming 10218 | -7/Garrison | Discovered exit to Factory (range 48) 10218 | -7/Garrison | Discovered exit to Factory (range 43) 10218 | -7/Garrison | Discovered exit to Factory (range 70) 10218 | -7/Garrison | Discovered new exit (range 70) 10269 | -7/Garrison | Build established: Scientist-Skirmisher 10291 | -7/Garrison | Triggered checkpoint 10292 | -7/Garrison | Triggered checkpoint 10298 | -7/Garrison | Triggered checkpoint 10345 | -7/Garrison | Destroyed 7 combat bots 10423 | -7/Garrison | H-XX Assembler disabled 10485 | -7/Garrison | Garrison Relay disabled 10531 | -7/Garrison | Triggered checkpoint 10657 | -7/Garrison | Triggered checkpoint 10709 | -7/Garrison | Entered Factory 11006 | -7/Factory | Discovered new exit (range 15) 11109 | -7/Factory | First assault squad dispatched 11266 | -7/Factory | Identified exit to Garrison 11266 | -7/Factory | Entered Garrison 11278 | -7/Garrison | Triggered checkpoint 11305 | -7/Garrison | Garrison Relay disabled 11386 | -7/Garrison | Triggered checkpoint 11464 | -7/Garrison | Core integrity fell below 50% 11487 | -7/Garrison | Destroyed 7 combat bots 11492 | -7/Garrison | Expanded RIF knowledge: Structural Interface 11646 | -7/Garrison | Discovered new exit (range 5) 11703 | -7/Garrison | Entered Factory 11703 | -7/Factory | Accompanied by 3 allies 11726 | -7/Factory | Identified exit to Garrison 11827 | -7/Factory | Fabricated Hvy. Ion Cannon (x2) 11852 | -7/Factory | Garrison activated, responded to threat 11869 | -7/Factory | Entered Garrison 11879 | -7/Garrison | Expanded RIF knowledge: Code Merge 11890 | -7/Garrison | Lost 3 allies 11983 | -7/Garrison | Triggered checkpoint 11996 | -7/Garrison | Garrison Relay disabled 12125 | -7/Garrison | Triggered checkpoint 12248 | -7/Garrison | Lost 9 parts (1p4n2u2w) 12252 | -7/Garrison | Destroyed 9 combat bots 12362 | -7/Garrison | Discovered exit to Factory (range 10) 12376 | -7/Garrison | Triggered checkpoint 12548 | -7/Garrison | Garrison Relay disabled 12710 | -7/Garrison | Build established: Scavenger-Skirmisher 12749 | -7/Garrison | Triggered checkpoint 12757 | -7/Garrison | Core integrity fell below 20% 12833 | -7/Garrison | Triggered checkpoint 12951 | -7/Garrison | Discovered exit to Factory (range 10) 12969 | -7/Garrison | Entered Factory 12969 | -6/Factory | Accompanied by 3 allies 12969 | -6/Factory | Evolved 2 slots: Propulsion x1, Utility x1 13275 | -6/Factory | Watched by a mysterious "MATRIX" hacker. 13387 | -6/Factory | Identified exit to Garrison 13395 | -6/Factory | Entered Garrison 13395 | -6/Garrison | Accompanied by 3 allies 13555 | -6/Garrison | Triggered checkpoint 13701 | -6/Garrison | Triggered checkpoint 13813 | -6/Garrison | Discovered new exit (range 14) 13834 | -6/Garrison | Expanded RIF knowledge: Alert ID Control 13895 | -6/Garrison | Garrison Relay disabled 13901 | -6/Garrison | Triggered checkpoint 13978 | -6/Garrison | Build established: Skirmisher 14179 | -6/Garrison | Triggered checkpoint 14256 | -6/Garrison | Core integrity fell below 50% 14265 | -6/Garrison | Core integrity fell below 20% 14285 | -6/Garrison | Lost 7 allies 14289 | -6/Garrison | Lost 14 parts (1p5n4u4w) 14411 | -6/Garrison | Entered Factory 14418 | -6/Factory | Identified exit to Lower Caves 14421 | -6/Factory | Identified exit to DSF 14421 | -6/Factory | Entered DSF 14456 | -6/DSF | Additional patrols routed to DSF 14457 | -6/DSF | Discovered new exit (range 16) 14464 | -6/DSF | Destroyed by H-61 Shepherd with Heavy Assault Cannon Last Messages --------------- AMBIENT_HEAT=-10 GOAL=ESCAPE 14421_ Receiving FarCom transmissions... 14426_ Dropped Carbon-fiber Leg+. 14426_ Acquired Nuclear Pulse Thruster. 14429_ Dropped Carbon-fiber Leg+. 14432_ Acquired Nuclear Pulse Thruster. 14441_ H-61 Shepherd calls for reinforcements. 14441_ ALERT: Suspicious intruders detected, dispatching Cutter reinforcements to area. 14456_ Hostiles detected in DSF, routing additional patrols. 14457_ EXIT=FOUND 14462_ Triggered Stasis Trap. 14462_ A bubble of rippling energy engulfs the area. 14462_ Field strength at 71. 14462_ Field strength at 42. 14463_ Field strength at 13. 14464_ Stasis field depleted. Map ----- +----------------------------------------------------+ | ??????#"""""#########[[!!!!!####### | | ??????#"""""##!!# #[[!!!!!# # | | ????"##"" | | ????""""" = | | ??????#"" ## # ### ###= =# | | ??????### ### # #?# #?# =# | | ???????## ##########|| ==####### | | ???????# #??????#|| ==#?????? | | ???????# #??????#|| ==#?????? | | ???????## ###??????### ###?????? | | ???????# #????????= !???????? | | ???????# #???????== !!??????? | | ???????# #???????== !!??????? | | ??????### ######???### ###?????? | | ??????#!! #?!!!#?!!#?# #???????? | | ??????#!! ##!!!#!!!## ???????? | | ??????#// H ???????? | | ??????#// ???????? | | ??????#// Y ???????? | | ??????#** ## #===## ????????? | | ??????#** ## #?==#?????????????? | | ??????### #;####???#?????????????? | | ???????# #????????????????????? | | ???????# #????????????????????? | | ???????# #????????????????????? | | ???????##%@###????????????????????? | | ???????#= ==?????????????????????? | | ???????#= ==#????????????????????? | | ???????## ###????????????????????? | | ????????# #??????????????????????? | | ????????" x??????????????????????? | | ????????" ??????????????????????? | | ???????""< ??????????????????????? | | ???????"""""??????????????????????? | | ???????"""""??????????????????????? | | ????????##"#??????????????????????? | | ??????????????????????????????????? | | ??????????????????????????????????? | | ??????????????????????????????????? | | ??????????????????????????????????? | | ??????????????????????????????????? | | ??????????????????????????????????? | | ??????????????????????????????????? | | | | | | | | | | | | | | | +----------------------------------------------------+ Best States ------------- Heat Dissipation 83 Energy Generation 21 Energy Capacity 300 Matter Stores 300 Matter Capacity 300 Sight Range 16 Terrain Scan Density 10 Base Temperature (-) 100 Armor Coverage 150 Utility Shielding 66 Evasion (%) 64 Targeting Accuracy 8 Relay Coupler Types 1 Relay Coupler Value 38 Item Schematics ----------------- ECM Suite | -9/Materials | Hacked Beam Rifle | -9/Materials | Scanalyzed Hvy. Laser | -7/Factory | Scanalyzed Imp. Titanium Leg | -7/Factory | Scanalyzed Robot Schematics ------------------ None Fabricated ------------ Hvy. Ion Cannon | x2 | -7/Factory | Preloaded Repaired ---------- Imp. Aluminum Leg | 38% | -8/Materials Imp. Medium Laser | 54% | -8/Materials Imp. Heat Sink | 55% | -8/Materials Studied --------- Aluminum Leg | -9/Materials | Hacked Sml. Laser | -9/Materials | Hacked Lgt. Ion Engine | -9/Materials | Hacked Beam Rifle | -9/Materials | Hacked Imp. Ion Engine | -9/Materials | Hacked Imp. Aluminum Leg | -8/Materials | Hacked Deuterium Engine | -8/Materials | Hacked Rocket Launcher | -8/Materials | Hacked Katana | -8/Materials | Hacked Titanium Leg | -8/Materials | Hacked Carbon-fiber Leg | -8/Materials | Hacked Hvy. Laser | -7/Factory | Hacked Imp. Titanium Leg | -7/Factory | Hacked Lgt. Nuclear Core | -7/Factory | Hacked Remote Datajack | -7/Factory | Hacked Imp. VSS Leg | -7/Factory | Hacked Gatling Laser | -7/Factory | Hacked Alien Tech Used ----------------- None Achievements -------------- None Challenges ------------ None Game ------ Seed PlasmaTacticalMultirail Manual? 0 Play Time 02:13:57 Cumulative 926.7 hours Start 2026.02.16 @ 14:13:07 End 2026.02.16 @ 17:10:20 Sessions 3 Manual Loads 0 Difficulty Rogue Special Mode None Game No. 357 Rogue 357 Adventurer 0 Explorer 0 Win Type - Total 96 Types 45/6/17/9/8/1/1/3/1/5 Lore% 98 Gallery% 88 Achievement% 86 Wizard Run 0 Options --------- Layout 1 ASCII 0 Keyboard 0 Movement Numpad Keybinds 0 Fullscreen 1 Font 24/Smallcaps Map View 50x35 Zoom Use 0% Tactical HUD 1 Map Filters NONE Filters NONE Steam 1 RUN: 7c6b6a02-59d6-4ed7-8091-f711caa92d77